Workbook

Sheet English System
B1: Projectile Motion
B3: This graphing utility produces the graph
B4: of the trajectory of a projectile
B5: based on any combination of
B6: initial velocity v0 and angle of elevation
B7: using the English system of units with feet.
A9: What is the initial velocity (in feet per second)?
C10: =E10+1 -> 400 | E10: 399
A13: What is the angle of elevation a (in degrees)?
C14: =E14+1 -> 36 | D14: ° | E14: 35
J17: Now trace a point along the path of the projectile
L18: 76
A19: Click each item below for suggestions and investigations | J19: t = | K19: =L18*Sheet3!B12 -> 11.06 | L19: seconds
B20: Item 1 | J20: x = | K20: =LOOKUP(K19+0.01,Sheet3!C3:C104, Sheet3!D3:D104) -> 3578.232438 | L20: feet
B21: Item 2 | J21: y = | K21: =LOOKUP(L18*Sheet3!B12+0.01,Sheet3!C3:C104, Sheet3!E3:E104) -> 643.50 | L21: feet
B22: Item 3 | J22: v = | K22: =-32*K19+v0*SIN(2*PI()/360*a0) -> -118.72 | L22: ft/sec | M22: (vertical velocity)
B23: Item 4
B24: Item 5
B25: Item 6
B26: Item 7
A30: To access/download all the DIGMath Apps for Calculus
A31: Click this link: | C31: DIGMath for Calculus
A33: Created by: Sheldon P. Gordon
A34: Farmingdale State College
A35: Development of this module was supported by the
A36: NSF's Division of Undergraduate Education
A37: under grants DUE-0310123 and DUE-0442160.

Sheet Metric System
B1: Projectile Motion
B3: This graphing utility produces the graph
C4: of the trajectory of a projectile
C5: based on any combination of
B6: initial velocity v0 and angle of elevation
B7: using the metric system of units with cm.
A9: What is the initial velocity (in centimeters per second)?
C10: =10*E10 -> 1230 | E10: 123
A13: What is the angle of elevation a (in degrees)?
C14: =E14+1 -> 42 | D14: ° | E14: 41
J17: Now trace a point along the path of the projectile
A18: Click each item below for suggestions and investigations | L18: 41
B19: Item 1 | J19: t = | K19: =L18*Sheet3!B16 -> 0.68 | L19: seconds
B20: Item 2 | J20: x = | K20: =LOOKUP(K19+0.01,Sheet3!G3:G104, Sheet3!H3:H104) -> 623.25 | L20: cm.
B21: Item 3 | J21: y = | K21: =LOOKUP(K19+0.01,Sheet3!G3:G104, Sheet3!I3:I104) -> 333.37 | L21: cm.
B22: Item 4 | J22: v = | K22: =-980*K19+v00*SIN(2*PI()/360*a00) -> 154.83 | L22: cm/sec | M22: (vertical velocity)
B23: Item 5
B24: Item 6
B25: Item 7
A29: To access/download all the DIGMath Apps for Calculus
A30: Click this link: | C30: DIGMath for Calculus
A32: Created by: Sheldon P. Gordon
A33: Farmingdale State College
A34: Development of this module was supported by the
A35: NSF's Division of Undergraduate Education
A36: under grants DUE-0310123 and DUE-0442160.

Sheet Sheet3
C1: t | D1: x | E1: y | F1: V | G1: t | H1: x | I1: y | J1: v | L1: t0 | M1: tfinal
D2: English System | H2: Metric System | L2: 0 | M2: =2*v0*SIN(2*PI()/360*a0)/32 -> 14.69463131
C3: =L3 -> 0 | D3: =v0*COS(2*PI()/360*a0)*C3 -> 0 | E3: =-(16*C3^2)+v0*SIN(2*PI()/360*a0)*C3 -> 0 | F3: =-32*C3+v0*SIN(2*PI()/360*a0) -> 235.1141009 | G3: =L18 -> 0 | H3: =v00*COS(2*PI()/360*a00)*G3 -> 0 | I3: =-(490*C3^2)+v00*SIN(2*PI()/360*a00)*G3 -> 0 | J3: =-(980*$G3)+v00*SIN(2*PI()/360*a00) -> 823.0306458 | K3: x: | L3: 0 | M3: 0
C4: =C3+Sheet3!B$12 -> 0.1454913991 | D4: 47.08200576 | E4: =-(16*C4^2)+v0*SIN(2*PI()/360*a0)*C4 -> 33.86839553 | F4: 230.4583761 | G4: =G3+B$16 -> 0.01663024138 | H4: 15.20117373 | I4: =-(490*$G4^2)+v00*SIN(2*PI()/360*a00)*$G4 -> 13.55168149 | J4: 806.7330093 | L4: =v0^2/32 -> 5000 | M4: 0
C5: =C4+Sheet3!B$12 -> 0.2909827982 | D5: 94.16401151 | E5: =IF((-(16*C5^2)+v0*SIN(2*PI()/360*a0)*C5)<0,0,-(16*C5^2)+v0*SIN(2*PI()/360*a0)*C5) -> 67.05942315 | F5: 225.8026514 | G5: =G4+B$16 -> 0.03326048276 | H5: 30.40234745 | I5: =IF((-(490*G5^2)+v00*SIN(2*PI()/360*a00)*G5)<0,0,-(490*G5^2)+v00*SIN(2*PI()/360*a00)*G5) -> 26.83232934 | J5: 790.4353727 | L5: English System
C6: =C5+Sheet3!B$12 -> 0.4364741972 | D6: 141.2460173 | E6: 99.57308286 | F6: 221.1469266 | G6: 0.04989072414 | H6: 45.60352118 | I6: 39.84194357 | J6: 774.1377362
C7: =C6+Sheet3!B$12 -> 0.5819655963 | D7: 188.328023 | E7: 131.4093747 | F7: 216.4912018 | G7: 0.06652096551 | H7: 60.80469491 | I7: 52.58052417 | J7: 757.8400996
C8: =C7+Sheet3!B$12 -> 0.7274569954 | D8: 235.4100288 | E8: 162.5682985 | F8: 211.8354771 | G8: 0.08315120689 | H8: 76.00586864 | I8: 65.04807114 | J8: 741.5424631
C9: =C8+Sheet3!B$12 -> 0.8729483945 | D9: 282.4920345 | E9: 193.0498545 | F9: 207.1797523 | G9: 0.09978144827 | H9: 91.20704236 | I9: 77.24458448 | J9: 725.2448265
C10: =C9+Sheet3!B$12 -> 1.018439794 | D10: 329.5740403 | E10: 222.8540426 | F10: 202.5240275 | G10: 0.1164116896 | H10: 106.4082161 | I10: 89.17006418 | J10: 708.94719
C11: =C10+Sheet3!B$12 -> 1.163931193 | D11: 376.6560461 | E11: 251.9808628 | F11: 197.8683028 | G11: 0.133041931 | H11: 121.6093898 | I11: 100.8245103 | J11: 692.6495534
A12: delta t = | B12: =(M2-L2)/101 -> 0.1454913991 | C12: =C11+Sheet3!B$12 -> 1.309422592 | D12: 423.7380518 | E12: 280.430315 | F12: 193.212578 | G12: 0.1496721724 | H12: 136.8105635 | I12: 112.2079227 | J12: 676.3519169
C13: =C12+Sheet3!B$12 -> 1.454913991 | D13: 470.8200576 | E13: 308.2023993 | F13: 188.5568532 | G13: 0.1663024138 | H13: 152.0117373 | I13: 123.3203015 | J13: 660.0542803
C14: =C13+Sheet3!B$12 -> 1.60040539 | D14: 517.9020633 | E14: 335.2971158 | F14: 183.9011284 | G14: 0.1829326552 | H14: 167.212911 | I14: 134.1616467 | J14: 643.7566438
A15: metric | C15: =C14+Sheet3!B$12 -> 1.745896789 | D15: 564.9840691 | E15: 361.7144643 | F15: 179.2454037 | G15: 0.1995628965 | H15: 182.4140847 | I15: 144.7319583 | J15: 627.4590072
A16: delta t = | B16: =(M18-L18)/101 -> 0.01663024138 | C16: =C15+Sheet3!B$12 -> 1.891388188 | D16: 612.0660748 | E16: 387.4544449 | F16: 174.5896789 | G16: 0.2161931379 | H16: 197.6152585 | I16: 155.0312362 | J16: 611.1613707 | L16: Metric System
C17: =C16+Sheet3!B$12 -> 2.036879587 | D17: 659.1480806 | E17: 412.5170576 | F17: 169.9339541 | G17: 0.2328233793 | H17: 212.8164322 | I17: 165.0594805 | J17: 594.8637341 | L17: t0 | M17: tfinal
C18: =C17+Sheet3!B$12 -> 2.182370986 | D18: 706.2300864 | E18: 436.9023024 | F18: 165.2782294 | G18: 0.2494536207 | H18: 228.0176059 | I18: 174.8166912 | J18: 578.5660976 | L18: 0 | M18: =2*v00*SIN(2*PI()/360*a00)/980 -> 1.679654379
C19: =C18+Sheet3!B$12 -> 2.327862385 | D19: 753.3120921 | E19: 460.6101792 | F19: 160.6225046 | G19: 0.2660838621 | H19: 243.2187796 | I19: 184.3028682 | J19: 562.268461 | K19: x: | L19: 0 | M19: 0
C20: =C19+Sheet3!B$12 -> 2.473353784 | D20: 800.3940979 | E20: 483.6406882 | F20: 155.9667798 | G20: 0.2827141034 | H20: 258.4199534 | I20: 193.5180116 | J20: 545.9708245 | L20: =v00^2/980 -> 1543.77551 | M20: 0
C21: =C20+Sheet3!B$12 -> 2.618845183 | D21: 847.4761036 | E21: 505.9938292 | F21: 151.311055 | G21: 0.2993443448 | H21: 273.6211271 | I21: 202.4621214 | J21: 529.6731879
C22: =C21+Sheet3!B$12 -> 2.764336583 | D22: 894.5581094 | E22: 527.6696024 | F22: 146.6553303 | G22: 0.3159745862 | H22: 288.8223008 | I22: 211.1351976 | J22: 513.3755514
C23: =C22+Sheet3!B$12 -> 2.909827982 | D23: 941.6401151 | E23: 548.6680076 | F23: 141.9996055 | G23: 0.3326048276 | H23: 304.0234745 | I23: 219.5372401 | J23: 497.0779148
C24: =C23+Sheet3!B$12 -> 3.055319381 | D24: 988.7221209 | E24: 568.9890449 | F24: 137.3438807 | G24: 0.3492350689 | H24: 319.2246483 | I24: 227.668249 | J24: 480.7802783
C25: =C24+Sheet3!B$12 -> 3.20081078 | D25: 1035.804127 | E25: 588.6327143 | F25: 132.688156 | G25: 0.3658653103 | H25: 334.425822 | I25: 235.5282242 | J25: 464.4826417
C26: =C25+Sheet3!B$12 -> 3.346302179 | D26: 1082.886132 | E26: 607.5990158 | F26: 128.0324312 | G26: 0.3824955517 | H26: 349.6269957 | I26: 243.1171659 | J26: 448.1850052
C27: =C26+Sheet3!B$12 -> 3.491793578 | D27: 1129.968138 | E27: 625.8879494 | F27: 123.3767064 | G27: 0.3991257931 | H27: 364.8281694 | I27: 250.4350739 | J27: 431.8873686
C28: =C27+Sheet3!B$12 -> 3.637284977 | D28: 1177.050144 | E28: 643.4995151 | F28: 118.7209817 | G28: 0.4157560345 | H28: 380.0293432 | I28: 257.4819483 | J28: 415.589732
C29: =C28+Sheet3!B$12 -> 3.782776376 | D29: 1224.13215 | E29: 660.4337129 | F29: 114.0652569 | G29: 0.4323862758 | H29: 395.2305169 | I29: 264.257789 | J29: 399.2920955
C30: =C29+Sheet3!B$12 -> 3.928267775 | D30: 1271.214155 | E30: 676.6905427 | F30: 109.4095321 | G30: 0.4490165172 | H30: 410.4316906 | I30: 270.7625961 | J30: 382.9944589
C31: =C30+Sheet3!B$12 -> 4.073759174 | D31: 1318.296161 | E31: 692.2700047 | F31: 104.7538073 | G31: 0.4656467586 | H31: 425.6328644 | I31: 276.9963696 | J31: 366.6968224
C32: =C31+Sheet3!B$12 -> 4.219250573 | D32: 1365.378167 | E32: 707.1720987 | F32: 100.0980826 | G32: 0.482277 | H32: 440.8340381 | I32: 282.9591094 | J32: 350.3991858
C33: =C32+Sheet3!B$12 -> 4.364741972 | D33: 1412.460173 | E33: 721.3968248 | F33: 95.4423578 | G33: 0.4989072414 | H33: 456.0352118 | I33: 288.6508157 | J33: 334.1015493
C34: =C33+Sheet3!B$12 -> 4.510233372 | D34: 1459.542178 | E34: 734.944183 | F34: 90.78663303 | G34: 0.5155374827 | H34: 471.2363855 | I34: 294.0714883 | J34: 317.8039127
C35: =C34+Sheet3!B$12 -> 4.655724771 | D35: =v0*COS(2*PI()/360*a0)*C35 -> 1506.624184 | E35: 747.8141733 | F35: =-32*C35+v0*SIN(2*PI()/360*a0) -> 86.13090826 | G35: 0.5321677241 | H35: =v00*COS(2*PI()/360*a00)*G35 -> 486.4375593 | I35: 299.2211272 | J35: =-(980*$G35)+v00*SIN(2*PI()/360*a00) -> 301.5062762
C36: =C35+Sheet3!B$12 -> 4.80121617 | D36: 1553.70619 | E36: 760.0067957 | F36: 81.47518349 | G36: 0.5487979655 | H36: 501.638733 | I36: 304.0997326 | J36: 285.2086396
C37: =C36+Sheet3!B$12 -> 4.946707569 | D37: 1600.788196 | E37: =IF((-(16*C37^2)+v0*SIN(2*PI()/360*a0)*C37)<0,0,-(16*C37^2)+v0*SIN(2*PI()/360*a0)*C37) -> 771.5220502 | F37: 76.81945872 | G37: 0.5654282069 | H37: 516.8399067 | I37: =IF((-(490*G37^2)+v00*SIN(2*PI()/360*a00)*G37)<0,0,-(490*G37^2)+v00*SIN(2*PI()/360*a00)*G37) -> 308.7073043 | J37: 268.9110031
C38: =C37+Sheet3!B$12 -> 5.092198968 | D38: 1647.870202 | E38: 782.3599368 | F38: 72.16373394 | G38: 0.5820584482 | H38: 532.0410804 | I38: 313.0438424 | J38: 252.6133665
C39: =C38+Sheet3!B$12 -> 5.237690367 | D39: 1694.952207 | E39: 792.5204554 | F39: 67.50800917 | G39: 0.5986886896 | H39: 547.2422542 | I39: 317.1093468 | J39: 236.31573
C40: =C39+Sheet3!B$12 -> 5.383181766 | D40: 1742.034213 | E40: 802.0036062 | F40: 62.8522844 | G40: 0.615318931 | H40: 562.4434279 | I40: 320.9038176 | J40: 220.0180934
C41: =C40+Sheet3!B$12 -> 5.528673165 | D41: 1789.116219 | E41: 810.809389 | F41: 58.19655963 | G41: 0.6319491724 | H41: 577.6446016 | I41: 324.4272548 | J41: 203.7204569
C42: =C41+Sheet3!B$12 -> 5.674164564 | D42: 1836.198225 | E42: 818.9378039 | F42: 53.54083486 | G42: 0.6485794138 | H42: 592.8457754 | I42: 327.6796584 | J42: 187.4228203
C43: =C42+Sheet3!B$12 -> 5.819655963 | D43: 1883.28023 | E43: 826.388851 | F43: 48.88511009 | G43: 0.6652096551 | H43: 608.0469491 | I43: 330.6610283 | J43: 171.1251838
C44: =C43+Sheet3!B$12 -> 5.965147362 | D44: 1930.362236 | E44: 833.1625301 | F44: 44.22938532 | G44: 0.6818398965 | H44: 623.2481228 | I44: 333.3713646 | J44: 154.8275472
C45: =C44+Sheet3!B$12 -> 6.110638761 | D45: 1977.444242 | E45: 839.2588413 | F45: 39.57366055 | G45: 0.6984701379 | H45: 638.4492965 | I45: 335.8106672 | J45: 138.5299107
C46: =C45+Sheet3!B$12 -> 6.256130161 | D46: 2024.526248 | E46: 844.6777845 | F46: 34.91793578 | G46: 0.7151003793 | H46: 653.6504703 | I46: 337.9789363 | J46: 122.2322741
C47: =C46+Sheet3!B$12 -> 6.40162156 | D47: 2071.608253 | E47: 849.4193599 | F47: 30.26221101 | G47: 0.7317306207 | H47: 668.851644 | I47: 339.8761717 | J47: 105.9346376
C48: =C47+Sheet3!B$12 -> 6.547112959 | D48: 2118.690259 | E48: 853.4835674 | F48: 25.60648624 | G48: 0.748360862 | H48: 684.0528177 | I48: 341.5023735 | J48: 89.63700103
C49: =C48+Sheet3!B$12 -> 6.692604358 | D49: 2165.772265 | E49: 856.8704069 | F49: 20.95076147 | G49: 0.7649911034 | H49: 699.2539914 | I49: 342.8575416 | J49: 73.33936448
C50: =C49+Sheet3!B$12 -> 6.838095757 | D50: 2212.854271 | E50: 859.5798786 | F50: 16.2950367 | G50: 0.7816213448 | H50: 714.4551652 | I50: 343.9416761 | J50: 57.04172793
C51: =C50+Sheet3!B$12 -> 6.983587156 | D51: 2259.936276 | E51: 861.6119823 | F51: 11.63931193 | G51: 0.7982515862 | H51: 729.6563389 | I51: 344.754777 | J51: 40.74409138
C52: =C51+Sheet3!B$12 -> 7.129078555 | D52: 2307.018282 | E52: 862.9667181 | F52: 6.983587156 | G52: 0.8148818275 | H52: 744.8575126 | I52: 345.2968443 | J52: 24.44645483
C53: =C52+Sheet3!B$12 -> 7.274569954 | D53: 2354.100288 | E53: 863.644086 | F53: 2.327862385 | G53: 0.8315120689 | H53: 760.0586864 | I53: 345.5678779 | J53: 8.148818275
C54: =C53+Sheet3!B$12 -> 7.420061353 | D54: 2401.182294 | E54: 863.644086 | F54: -2.327862385 | G54: 0.8481423103 | H54: 775.2598601 | I54: 345.5678779 | J54: -8.148818275
C55: =C54+Sheet3!B$12 -> 7.565552752 | D55: 2448.264299 | E55: 862.9667181 | F55: -6.983587156 | G55: 0.8647725517 | H55: 790.4610338 | I55: 345.2968443 | J55: -24.44645483
C56: =C55+Sheet3!B$12 -> 7.711044151 | D56: 2495.346305 | E56: 861.6119823 | F56: -11.63931193 | G56: 0.8814027931 | H56: 805.6622075 | I56: 344.754777 | J56: -40.74409138
C57: =C56+Sheet3!B$12 -> 7.85653555 | D57: 2542.428311 | E57: 859.5798786 | F57: -16.2950367 | G57: 0.8980330344 | H57: 820.8633813 | I57: 343.9416761 | J57: -57.04172793
C58: =C57+Sheet3!B$12 -> 8.00202695 | D58: 2589.510317 | E58: 856.8704069 | F58: -20.95076147 | G58: 0.9146632758 | H58: 836.064555 | I58: 342.8575416 | J58: -73.33936448
C59: =C58+Sheet3!B$12 -> 8.147518349 | D59: 2636.592322 | E59: 853.4835674 | F59: -25.60648624 | G59: 0.9312935172 | H59: 851.2657287 | I59: 341.5023735 | J59: -89.63700103
C60: =C59+Sheet3!B$12 -> 8.293009748 | D60: 2683.674328 | E60: 849.4193599 | F60: -30.26221101 | G60: 0.9479237586 | H60: 866.4669024 | I60: 339.8761717 | J60: -105.9346376
C61: =C60+Sheet3!B$12 -> 8.438501147 | D61: 2730.756334 | E61: 844.6777845 | F61: -34.91793578 | G61: 0.964554 | H61: 881.6680762 | I61: 337.9789363 | J61: -122.2322741
C62: =C61+Sheet3!B$12 -> 8.583992546 | D62: 2777.83834 | E62: 839.2588413 | F62: -39.57366055 | G62: 0.9811842413 | H62: 896.8692499 | I62: 335.8106672 | J62: -138.5299107
C63: =C62+Sheet3!B$12 -> 8.729483945 | D63: 2824.920345 | E63: 833.1625301 | F63: -44.22938532 | G63: 0.9978144827 | H63: 912.0704236 | I63: 333.3713646 | J63: -154.8275472
C64: =C63+Sheet3!B$12 -> 8.874975344 | D64: 2872.002351 | E64: 826.388851 | F64: -48.88511009 | G64: 1.014444724 | H64: 927.2715973 | I64: 330.6610283 | J64: -171.1251838
C65: =C64+Sheet3!B$12 -> 9.020466743 | D65: 2919.084357 | E65: 818.9378039 | F65: -53.54083486 | G65: 1.031074965 | H65: 942.4727711 | I65: 327.6796584 | J65: -187.4228203
C66: =C65+Sheet3!B$12 -> 9.165958142 | D66: 2966.166363 | E66: 810.809389 | F66: -58.19655963 | G66: 1.047705207 | H66: 957.6739448 | I66: 324.4272548 | J66: -203.7204569
C67: =C66+Sheet3!B$12 -> 9.311449541 | D67: =v0*COS(2*PI()/360*a0)*C67 -> 3013.248368 | E67: 802.0036062 | F67: =-32*C67+v0*SIN(2*PI()/360*a0) -> -62.8522844 | G67: 1.064335448 | H67: =v00*COS(2*PI()/360*a00)*G67 -> 972.8751185 | I67: 320.9038176 | J67: =-(980*$G67)+v00*SIN(2*PI()/360*a00) -> -220.0180934
C68: =C67+Sheet3!B$12 -> 9.45694094 | D68: 3060.330374 | E68: 792.5204554 | F68: -67.50800917 | G68: 1.08096569 | H68: 988.0762923 | I68: 317.1093468 | J68: -236.31573
C69: =C68+Sheet3!B$12 -> 9.602432339 | D69: 3107.41238 | E69: =IF((-(16*C69^2)+v0*SIN(2*PI()/360*a0)*C69)<0,0,-(16*C69^2)+v0*SIN(2*PI()/360*a0)*C69) -> 782.3599368 | F69: -72.16373394 | G69: =G68+B$16 -> 1.097595931 | H69: 1003.277466 | I69: =IF((-(490*G69^2)+v00*SIN(2*PI()/360*a00)*G69)<0,0,-(490*G69^2)+v00*SIN(2*PI()/360*a00)*G69) -> 313.0438424 | J69: -252.6133665
C70: =C69+Sheet3!B$12 -> 9.747923739 | D70: 3154.494386 | E70: 771.5220502 | F70: -76.81945872 | G70: 1.114226172 | H70: 1018.47864 | I70: 308.7073043 | J70: -268.9110031
C71: =C70+Sheet3!B$12 -> 9.893415138 | D71: 3201.576391 | E71: 760.0067957 | F71: -81.47518349 | G71: 1.130856414 | H71: 1033.679813 | I71: 304.0997326 | J71: -285.2086396
C72: =C71+Sheet3!B$12 -> 10.03890654 | D72: 3248.658397 | E72: 747.8141733 | F72: -86.13090826 | G72: 1.147486655 | H72: 1048.880987 | I72: 299.2211272 | J72: -301.5062762
C73: =C72+Sheet3!B$12 -> 10.18439794 | D73: 3295.740403 | E73: 734.944183 | F73: -90.78663303 | G73: 1.164116896 | H73: 1064.082161 | I73: 294.0714883 | J73: -317.8039127
C74: =C73+Sheet3!B$12 -> 10.32988933 | D74: 3342.822409 | E74: 721.3968248 | F74: -95.4423578 | G74: 1.180747138 | H74: 1079.283335 | I74: 288.6508157 | J74: -334.1015493
C75: =C74+Sheet3!B$12 -> 10.47538073 | D75: 3389.904415 | E75: 707.1720987 | F75: -100.0980826 | G75: 1.197377379 | H75: 1094.484508 | I75: 282.9591094 | J75: -350.3991858
C76: =C75+Sheet3!B$12 -> 10.62087213 | D76: 3436.98642 | E76: 692.2700047 | F76: -104.7538073 | G76: 1.214007621 | H76: 1109.685682 | I76: 276.9963696 | J76: -366.6968224
C77: =C76+Sheet3!B$12 -> 10.76636353 | D77: 3484.068426 | E77: 676.6905427 | F77: -109.4095321 | G77: 1.230637862 | H77: 1124.886856 | I77: 270.7625961 | J77: -382.9944589
C78: =C77+Sheet3!B$12 -> 10.91185493 | D78: 3531.150432 | E78: 660.4337129 | F78: -114.0652569 | G78: 1.247268103 | H78: 1140.08803 | I78: 264.257789 | J78: -399.2920955
C79: =C78+Sheet3!B$12 -> 11.05734633 | D79: 3578.232438 | E79: 643.4995151 | F79: -118.7209817 | G79: 1.263898345 | H79: 1155.289203 | I79: 257.4819483 | J79: -415.589732
C80: =C79+Sheet3!B$12 -> 11.20283773 | D80: 3625.314443 | E80: 625.8879494 | F80: -123.3767064 | G80: 1.280528586 | H80: 1170.490377 | I80: 250.4350739 | J80: -431.8873686
C81: =C80+Sheet3!B$12 -> 11.34832913 | D81: 3672.396449 | E81: 607.5990158 | F81: -128.0324312 | G81: 1.297158828 | H81: 1185.691551 | I81: 243.1171659 | J81: -448.1850052
C82: =C81+Sheet3!B$12 -> 11.49382053 | D82: 3719.478455 | E82: 588.6327143 | F82: -132.688156 | G82: 1.313789069 | H82: 1200.892724 | I82: 235.5282242 | J82: -464.4826417
C83: =C82+Sheet3!B$12 -> 11.63931193 | D83: 3766.560461 | E83: 568.9890449 | F83: -137.3438807 | G83: 1.33041931 | H83: 1216.093898 | I83: 227.668249 | J83: -480.7802783
C84: =C83+Sheet3!B$12 -> 11.78480333 | D84: 3813.642466 | E84: 548.6680076 | F84: -141.9996055 | G84: 1.347049552 | H84: 1231.295072 | I84: 219.5372401 | J84: -497.0779148
C85: =C84+Sheet3!B$12 -> 11.93029472 | D85: 3860.724472 | E85: 527.6696024 | F85: -146.6553303 | G85: 1.363679793 | H85: 1246.496246 | I85: 211.1351976 | J85: -513.3755514
C86: =C85+Sheet3!B$12 -> 12.07578612 | D86: 3907.806478 | E86: 505.9938292 | F86: -151.311055 | G86: 1.380310034 | H86: 1261.697419 | I86: 202.4621214 | J86: -529.6731879
C87: =C86+Sheet3!B$12 -> 12.22127752 | D87: 3954.888484 | E87: 483.6406882 | F87: -155.9667798 | G87: 1.396940276 | H87: 1276.898593 | I87: 193.5180116 | J87: -545.9708245
C88: =C87+Sheet3!B$12 -> 12.36676892 | D88: 4001.970489 | E88: 460.6101792 | F88: -160.6225046 | G88: 1.413570517 | H88: 1292.099767 | I88: 184.3028682 | J88: -562.268461
C89: =C88+Sheet3!B$12 -> 12.51226032 | D89: 4049.052495 | E89: 436.9023024 | F89: -165.2782294 | G89: 1.430200759 | H89: 1307.300941 | I89: 174.8166912 | J89: -578.5660976
C90: =C89+Sheet3!B$12 -> 12.65775172 | D90: 4096.134501 | E90: 412.5170576 | F90: -169.9339541 | G90: 1.446831 | H90: 1322.502114 | I90: 165.0594805 | J90: -594.8637341
C91: =C90+Sheet3!B$12 -> 12.80324312 | D91: 4143.216507 | E91: 387.4544449 | F91: -174.5896789 | G91: 1.463461241 | H91: 1337.703288 | I91: 155.0312362 | J91: -611.1613707
C92: =C91+Sheet3!B$12 -> 12.94873452 | D92: 4190.298512 | E92: 361.7144643 | F92: -179.2454037 | G92: 1.480091483 | H92: 1352.904462 | I92: 144.7319583 | J92: -627.4590072
C93: =C92+Sheet3!B$12 -> 13.09422592 | D93: 4237.380518 | E93: 335.2971158 | F93: -183.9011284 | G93: 1.496721724 | H93: 1368.105635 | I93: 134.1616467 | J93: -643.7566438
C94: =C93+Sheet3!B$12 -> 13.23971732 | D94: 4284.462524 | E94: 308.2023993 | F94: -188.5568532 | G94: 1.513351965 | H94: 1383.306809 | I94: 123.3203015 | J94: -660.0542803
C95: =C94+Sheet3!B$12 -> 13.38520872 | D95: 4331.54453 | E95: 280.430315 | F95: -193.212578 | G95: 1.529982207 | H95: 1398.507983 | I95: 112.2079227 | J95: -676.3519169
C96: =C95+Sheet3!B$12 -> 13.53070011 | D96: 4378.626535 | E96: 251.9808628 | F96: -197.8683028 | G96: 1.546612448 | H96: 1413.709157 | I96: 100.8245103 | J96: -692.6495534
C97: =C96+Sheet3!B$12 -> 13.67619151 | D97: 4425.708541 | E97: 222.8540426 | F97: -202.5240275 | G97: 1.56324269 | H97: 1428.91033 | I97: 89.17006418 | J97: -708.94719
C98: =C97+Sheet3!B$12 -> 13.82168291 | D98: 4472.790547 | E98: 193.0498545 | F98: -207.1797523 | G98: 1.579872931 | H98: 1444.111504 | I98: 77.24458448 | J98: -725.2448265
C99: =C98+Sheet3!B$12 -> 13.96717431 | D99: =v0*COS(2*PI()/360*a0)*C99 -> 4519.872553 | E99: 162.5682985 | F99: =-32*C99+v0*SIN(2*PI()/360*a0) -> -211.8354771 | G99: 1.596503172 | H99: =v00*COS(2*PI()/360*a00)*G99 -> 1459.312678 | I99: 65.04807114 | J99: =-(980*$G99)+v00*SIN(2*PI()/360*a00) -> -741.5424631
C100: =C99+Sheet3!B$12 -> 14.11266571 | D100: 4566.954558 | E100: 131.4093747 | F100: -216.4912018 | G100: 1.613133414 | H100: 1474.513852 | I100: 52.58052417 | J100: -757.8400996
C101: =C100+Sheet3!B$12 -> 14.25815711 | D101: 4614.036564 | E101: 99.57308286 | F101: -221.1469266 | G101: 1.629763655 | H101: 1489.715025 | I101: 39.84194357 | J101: -774.1377362
C102: =C101+Sheet3!B$12 -> 14.40364851 | D102: 4661.11857 | E102: 67.05942315 | F102: -225.8026514 | G102: 1.646393896 | H102: 1504.916199 | I102: 26.83232934 | J102: -790.4353727
C103: =C102+Sheet3!B$12 -> 14.54913991 | D103: 4708.200576 | E103: 33.86839553 | F103: -230.4583761 | G103: 1.663024138 | H103: 1520.117373 | I103: 13.55168149 | J103: -806.7330093
C104: =C103+Sheet3!B$12 -> 14.69463131 | D104: 4755.282581 | E104: 0 | F104: -235.1141009 | G104: 1.679654379 | H104: 1535.318546 | I104: 2.273736754e-12 | J104: -823.0306458
